Cogmind - Beta 15 @@@ ROGUE MODE // 2025.07.19 @ 17:15:42 Player: KamenAya Result: Destroyed by G-34 Mercenary with Small Laser Performance ------------- Evolutions (1) 500 Regions Visited (2) 400 Robots Destroyed (20) 100 Value Destroyed (571) 571 Prototype IDs (0) 0 Alien Tech Used (0) 0 Bonus (0) 0 TOTAL SCORE: 1571 Bonus ------- None Cogmind --------- Core Integrity 0/400 Matter 281/300 Energy 100/100 System Corruption 13% Temperature Cool (6) Movement Core (50) Location -9/Materials Parts ------- > --- POWER (1) -------- (None) > --- PROPULSION (3) --- (None) > --- UTILITY (3) ------ (None) > --- WEAPON (2) ------- Heavy Assault Rifle > --- INVENTORY (5) ---- Heat Sink Heat Sink Peak State ------------ > --- POWER ------------ Ion Engine > --- PROPULSION ------- Improved Hover Unit Improved Hover Unit Improved Hover Unit > --- UTILITY ---------- Heat Sink Terrain Scanner Improved Targeting Computer > --- WEAPON ----------- EM Pulse Gun Particle Gun > --- INVENTORY -------- Ion Engine Heavy EM Pulse Gun Beam Cannon EMP Blaster EMP Blaster [Rating: 14] Favorites ----------- Power Ion Engine Engine Ion Engine Propulsion Improved Hover Unit Treads Light Treads Leg Aluminum Leg Wheel Wheel Hover Unit Improved Hover Unit Utility Terrain Scanner Device Terrain Scanner Processor Improved Targeting Computer Weapon EM Pulse Gun Energy Gun EM Pulse Gun Energy Cannon Beam Cannon Ballistic Gun Light Assault Rifle Launcher EMP Blaster Build | -11 -10 -9 ------- Run | Yrd Mat Mat Slots Evolved 2 | . . 2 Power . | . . . Propulsion 1 | . . 1 Utility 1 | . . 1 Weapon . | . . . Parts Attached 29 | 7 10 12 Power 4 | 1 1 2 Engine 4 | 1 1 2 Core . | . . . Reactor . | . . . Propulsion 9 | 2 5 2 Treads 1 | . . 1 Leg 2 | . 2 . Wheel 3 | 2 1 . Hover 3 | . 2 1 Flight . | . . . Utility 5 | 2 1 2 Device 4 | 2 1 1 Storage . | . . . Processor 1 | . . 1 Hackware . | . . . Protection . | . . . Artifact . | . . . Weapon 11 | 2 3 6 Energy Gun 5 | 2 1 2 Energy Cannon 1 | . . 1 Ballistic Gun 3 | . 2 1 Ballistic Cannon . | . . . Launcher 2 | . . 2 Special Weapon . | . . . Impact Weapon . | . . . Slashing Weapon . | . . . Piercing Weapon . | . . . Special Melee Weapon . | . . . Unidentified Prototypes . | . . . Corrupted Parts 1 | . . 1 System Corruption 1 | . . 1 Parts Lost 24 | . 8 16 Power 4 | . 1 3 Propulsion 7 | . 3 4 Utility 5 | . 2 3 Weapon 8 | . 2 6 Highest Loss Streak 13 | . 7 13 To Critical Strikes . | . . . Average Backups 4 | 1 4 4 Power . | . . . Propulsion . | . 1 . Utility . | . . . Weapon 2 | . 2 3 Tool/Special . | . . . Unused Backups 6 | . 4 2 Power 1 | . 1 . Propulsion 1 | . 1 . Utility 2 | . . 2 Weapon 2 | . 2 . Tool/Special . | . . . Average Slot Usage (%) 65 | . 71 61 Engine 9 | . 8 9 Leg 2 | . 5 . Wheel 5 | . 13 . Hover 13 | . 6 18 Device 11 | . 10 12 Energy Gun 17 | . 18 17 Ballistic Gun 3 | . 8 . Peak Build Rating 14 | 9 9 14 Average Rating 6 | 5 5 7 On Entrance 5 | . 9 8 Naked Turns 43 | . . 43 Heaviest Build 14 | 11 11 14 Greatest Support 26 | 26 26 21 Greatest Overweight (x) 4 | . . 4 Average Overweight (x) . | . . . Largest Inventory Capacity 5 | 5 5 5 Average Capacity 5 | 5 5 5 Most Carried 5 | 5 5 5 Average Carried 4 | 1 4 4 Final Capacity 5 | 5 5 5 Final Carried 5 | 3 5 2 Class Distribution -------------------- 100% | Mutant Dominant Class ---------------- Mutant | -10/Materials Mutant | -9/Materials Resources | -11 -10 -9 ----------- Run | Yrd Mat Mat Matter Collected 525 | 270 119 136 Remotely 132 | 74 58 . Salvage Created 741 | 86 299 356 Parts 39 | 7 15 17 Haulers Intercepted . | . . . Recyclers Shooed . | . . . Parts Field Recycled . | . . . Retrieved Matter . | . . . Parts Self-Destructed . | . . . Prevented . | . . . Kills | -11 -10 -9 ------- Run | Yrd Mat Mat Combat Hostiles Destroyed 16 | . 6 10 Guns 9 | . 6 3 Cannons 1 | . . 1 AOE 6 | . . 6 Classes Destroyed 8 | 2 2 4 Worker 1 | . . 1 Tunneler 1 | 1 . . Recycler 1 | 1 . . Watcher 1 | . 1 . Swarmer 3 | . . 3 Grunt 11 | . 6 5 Brawler 1 | . . 1 Sentry 1 | . . 1 Best Kill Streak 4 | 2 2 4 Combat Bots Only 3 | . 2 3 Max Kills in Single Turn 2 | 1 1 2 Gunslinging . | . . . Exploded 2 | . . 2 Melee . | . . . Uniques/NPCs Destroyed . | . . . Combat | -11 -10 -9 -------- Run | Yrd Mat Mat Hostile Shots Fired 209 | . 68 141 Missed 62 | . 24 38 Hits 147 | . 44 103 Melee 3 | . . 3 Projectile 144 | . 44 100 Critical Strikes 3 | . 1 2 Damage Taken 1833 | 34 585 1214 Core 575 | . 171 404 Absorbed by Shields . | . . . Regen/Repaired (Parts) 34 | . 34 . Core Remaining (%) 65 | 100 31 . Volleys Fired 80 | 5 36 39 Largest 2 | 2 2 2 Hottest 125 | 80 80 125 Shots Fired 136 | 10 59 67 Gun 121 | 10 59 52 Cannon 10 | . . 10 Launcher 5 | . . 5 Special . | . . . Kinetic 48 | . 45 3 Thermal 37 | . 1 36 Explosive . | . . . Electromagnetic 51 | 10 13 28 Robot Hit Streak 10 | 4 8 10 Robot Miss Streak 5 | 2 3 5 Penetration Max . | . . . Secondary Targets 1 | . 1 . Max Gunslinging Chain 1 | . 1 . Shots Hit Robots 82 | 7 40 35 Core Hits 36 | 2 16 18 Critical Kills . | . . . Critical Parts Destroyed . | . . . Critical Strikes 1 | . . 1 Burn 1 | . . 1 Melee Attacks . | . . . Impact . | . . . Slashing . | . . . Piercing . | . . . Sneak Attacks . | . . . Combat Hostiles . | . . . Follow-up Attacks . | . . . Damage Inflicted 1525 | 125 398 1002 Guns 787 | 79 379 329 Cannons 122 | . . 122 Explosions 597 | 46 . 551 Melee . | . . . Ramming 19 | . 19 . Kinetic 265 | . 252 13 Thermal 524 | 46 11 467 Explosive 136 | . . 136 Electromagnetic 581 | 79 116 386 Impact . | . . . Slashing . | . . . Piercing . | . . . Highest Corruption 13 | . . 13 Average Corruption 11 | . . 11 Corruption Purged . | . . . Corruption Blocked . | . . . Effects 6 | . . 6 Matter Fused 1 | . . 1 Heat Flow Errors 1 | . . 1 Parts Rejected 1 | . . 1 Misdirections 2 | . . 2 Weapon Failures 1 | . . 1 Overload Shots . | . . . Overflow Damage 54 | . . 54 Projectiles . | . . . Explosions 54 | . . 54 Melee . | . . . Knockbacks . | . . . Impact . | . . . Kinetic . | . . . Secondary . | . . . Self-Inflicted Damage 175 | 34 9 132 Shots 5 | 1 . 4 Rammed 1 | . 1 . Targets Rammed 1 | . 1 . Kicked . | . . . Crushed . | . . . Highest Temperature 230 | 72 84 230 Average Temperature 49 | 34 29 61 Received Heat Transfer 678 | . 342 336 Siege Activations . | . . . Martial Activations . | . . . Shielding Activations . | . . . Robots Disrupted . | . . . Combat Hostiles . | . . . Robots Corrupted . | . . . Combat Hostiles . | . . . Parts Fried 2 | 1 . 1 Impact Corruptions . | . . . Robots Melted . | . . . Combat Hostiles . | . . . Parts Melted 1 | . . 1 Heat Transferred 967 | . 25 942 Parts Sabotaged . | . . . Parts Stolen . | . . . Parts Stripped . | . . . Power Chain Reactions 6 | 1 . 5 Alert | -11 -10 -9 ------- Run | Yrd Mat Mat Maximum Alert Level . | . . . Low Security (%) 100 | 100 100 100 Level 1 . | . . . Level 2 . | . . . Level 3 . | . . . Level 4 . | . . . Level 5 . | . . . High Security . | . . . Max Security . | . . . Peak Influence 129 | 5 30 129 Initial . | . . . Average 17 | . 5 28 Influence Increases 609 | 10 162 437 Destroy 0b10 Robot/C 320 | . 120 200 Destroy 0b10 Robot/NC 20 | 10 5 5 Destroy Leader 62 | . 32 30 Successful Hack 5 | . 5 . Disable Machine 45 | . . 45 Destroy Structure 52 | . . 52 Lose Combat Pursuer 105 | . . 105 Influence Decreases 480 | 10 162 308 Time Decay 260 | 10 102 148 Lost Part 220 | . 60 160 Squads Dispatched 3 | . 1 2 Investigation . | . . . Extermination . | . . . Reinforcement 3 | . 1 2 Assault . | . . . Garrison . | . . . Intercept . | . . . Searches Triggered . | . . . Construction Impeded . | . . . Haulers Reinforced . | . . . Active Scanning Responses . | . . . Cargo Convoy Interrupts . | . . . Stealth | -11 -10 -9 --------- Run | Yrd Mat Mat Distress Signals 2 | . . 2 Communications Jammed . | . . . Distress Signals . | . . . Times Spotted 33 | . 10 23 Peak Tracking Total 7 | . 4 7 Tactical Retreats 5 | . . 5 Traps | -11 -10 -9 ------- Run | Yrd Mat Mat Traps Triggered . | . . . Indirectly . | . . . Trap Hack Attempts . | . . . Triggered . | . . . Disarmed . | . . . Reprogrammed . | . . . Reused . | . . . Traps Extracted . | . . . Installed . | . . . Triggered . | . . . Machines | -11 -10 -9 ---------- Run | Yrd Mat Mat Machines Disabled 3 | . . 3 Max in Single Turn 1 | . . 1 Machines Repaired . | . . . Machines Dismantled . | . . . Machines Sabotaged . | . . . Overloaded Fab Kills . | . . . Hacking | -11 -10 -9 --------- Run | Yrd Mat Mat Machines Accessed 2 | . 2 . Terminals 1 | . 1 . Fabricators . | . . . Repair Stations 1 | . 1 . Recycling Units . | . . . Scanalyzers . | . . . Garrison Access . | . . . Total Hacks 4 | . 4 . Successful 4 | . 4 . Failed . | . . . Catastrophic . | . . . Database Lockouts . | . . . Manual . | . . . Terminals 1 | . 1 . Fabricators . | . . . Repair Stations 3 | . 3 . Recycling Units . | . . . Scanalyzers . | . . . Garrison Access . | . . . Terminal Hacks 1 | . 1 . Record 1 | . 1 . Fabricator Hacks . | . . . Repair Station Hacks 3 | . 3 . Scan Component 2 | . 2 . Repair 1 | . 1 . Recycling Unit Hacks . | . . . Scanalyzer . | . . . Garrison Access Hacks . | . . . Unauthorized Hacks . | . . . Terminals . | . . . Fabricators . | . . . Repair Stations . | . . . Recycling Units . | . . . Scanalyzers . | . . . Garrison Access . | . . . Data Cores Recovered . | . . . Used . | . . . Hacking Detections 1 | . 1 . Full Trace Events . | . . . Feedback Events . | . . . Feedback Blocked . | . . . Robot Schematics Acquired . | . . . Robots Built . | . . . Authchips . | . . . Time . | . . . Total Robot Build Rating . | . . . Part Schematics Acquired . | . . . Parts Built . | . . . Authchips . | . . . Time . | . . . Total Part Build Rating . | . . . Parts Repaired 1 | . 1 . Time 26 | . 26 . Parts Recycled . | . . . Recycled Matter . | . . . Retrieved Matter . | . . . Retrieved Components . | . . . Parts Scanalyzed . | . . . Part Schematics Acquired . | . . . Parts Damaged . | . . . Bothacking | -11 -10 -9 ------------ Run | Yrd Mat Mat Used RIF Installer . | . . . Robots Hacked . | . . . Non-combat . | . . . Combat . | . . . Robot Hacks Applied . | . . . Relay Couplers Released . | . . . Fabnet Peak Effective % . | . . . Robots Rewired . | . . . Allies Hacked . | . . . Hacks Repelled . | . . . Allies | -11 -10 -9 -------- Run | Yrd Mat Mat Total Allies . | . . . Largest Group . | . . . Highest-Rated Group . | . . . Highest-Rated Ally . | . . . Total Orders . | . . . Ally Attacks . | . . . Total Damage . | . . . Kills . | . . . Allies Corrupted . | . . . Allies Melted . | . . . Intel | -11 -10 -9 ------- Run | Yrd Mat Mat Active Infowar (turns) 784 | 33 169 582 Terrain 784 | 33 169 582 Robot Analysis Total . | . . . Derelict Logs Recovered . | . . . Drone Launches . | . . . Drone Recoveries . | . . . Exploration | -11 -10 -9 ------------- Run | Yrd Mat Mat Turns Passed 1307 | 89 503 715 Spaces Moved 860 | 53 430 377 Core 126 | 14 20 92 Treads 6 | . . 6 Legs 76 | . 76 . Wheels 194 | 39 155 . Hover 458 | . 179 279 Flight . | . . . Fastest Speed 50 | 50 50 50 Average Speed 70 | 79 76 63 Slowest Speed 250 | 90 120 250 Overloaded Moves . | . . . Propulsion Burnouts . | . . . Robots Hopped . | . . . Potential Cave-ins . | . . . Cave-ins Triggered . | . . . Exploration Rate (%) 32 | 4 65 28 Regions Visited 2 Branch Regions . Pre-discovered Areas . | . . . Known Exits Taken . | . . . Unknown Exits Taken 2 | 1 1 . Scrap Searched . | . . . Spaces Dug . | . . . Terrain Destroyed 62 | 3 . 59 Melee . | . . . Projectile . | . . . AOE 62 | 3 . 59 Terrain Rammed . | . . . Walls Destroyed . | . . . Machines Disabled . | . . . Actions | -11 -10 -9 --------- Run | Yrd Mat Mat Total 1428 | 89 554 785 Wait 418 | 15 54 349 Move 858 | 52 429 377 Hop . | . . . Pick Up 30 | 10 14 6 Fast Attach 6 | . 3 3 Attach 23 | 7 7 9 Detach . | . . . Swap 4 | . 3 1 Drop 8 | . 7 1 Fire 80 | 5 36 39 Melee . | . . . Ram 1 | . 1 . Kick . | . . . Crush . | . . . Escape Stasis . | . . . Rewire . | . . . Trap . | . . . Miscellaneous . | . . . Route ------- -11/Scrapyard -10/Materials (discovered 2 exits: *Mat / [*Min]) -9/Materials History --------- Turn | Location | Event 9 | -11/Scrapyard | Discovered new exit (range 15) 90 | -11/Scrapyard | Entered Materials 180 | -10/Materials | Repaired Wheel 316 | -10/Materials | Build established: Mutant 317 | -10/Materials | Core integrity fell below 50% 390 | -10/Materials | Lost 7 parts (1p3n1u2w) 400 | -10/Materials | Discovered new exit (range 5) 452 | -10/Materials | Discovered new exit (range 8) 593 | -10/Materials | Entered another Materials area 593 | -9/Materials | Evolved 2 slots: Propulsion x1, Utility x1 1200 | -9/Materials | System corruption reached 10% 1206 | -9/Materials | Core integrity fell below 50% 1233 | -9/Materials | Lost 13 parts (2p3n3u5w) 1289 | -9/Materials | Core integrity fell below 20% 1308 | -9/Materials | Destroyed by G-34 Mercenary with Small Laser Last Messages --------------- 01266_ Lgt. Treads destroyed. 01268_ K-01 Serf collects debris. 01268_ U-05 Engineer lays Concrete. 01269_ S-10 Pest destroyed. 01270_ U-05 Engineer builds a Wall. 01270_ U-05 Engineer lays Concrete. 01271_ K-01 Serf collects debris. 01272_ U-05 Engineer lays Concrete. 01274_ K-01 Serf collects debris. 01274_ U-05 Engineer lays Concrete. 01275_ K-01 Serf collects debris. 01275_ U-05 Engineer builds a Wall. 01278_ K-01 Serf collects debris. 01280_ U-05 Engineer builds a Wall. 01283_ Ion Engine destroyed. 01286_ System corrupted: Heat flow error (+258). 01299_ Integrated Corrupted Hvy. Assault Rifle (+1). 01306_ System corrupted: Hvy. Assault Rifle jammed. Map ----- +----------------------------------------------------+ | | | | | | | | | | | | | ?????????????????????????????????????????????????? | | ?????????????????????????????????????????????????? | | ?????????????????????????????????????????????????? | | ???????????????????????????????????????????#?????# | | ????????????????????????????????????????????##???? | | ?????????????????????????????????????????????#?#?? | | ?????????????????????????????????????#??##??#????# | | ??????????????????????????????????????#?????#????? | | ??????????????????????????????????? ????#??????#?? | | ???????????????? ?????????????????? ?#??????##??? | | ????????????????? ??????????????????##???#??#???? | | ????????????????? ??????????????????#??#??##??#? | | ?????????????????? ??????????? ?? ???#????????? | | ??????????????????# ???????#????? ??##??#???#?#?? | | ??????????????????# ???????????????#?#???#?#?#?? | | ??????????????????# ?????????? ?????########??? | | ??????????????????# ??????????? ???## ##?? | | ??????????????????# r ##### ??? ?"? ???# #??# | | ??????????????????# +???????? ??## #??? | | ??????????????????# @#???????? ? ?# #??? | | ??????????????????## a s#?????? ???## #??? | | ??????????????######+## s#?????? ?? ?## #?## | | ??????????????# # ##############+##+###### | | ??????????????# ! ! + # /% | | ????????????#?# # # ########## ###### | | ??????????????######??# # #??##?#### #???#? | | ??????????????????????# s # #??##????# #???#? | | ??????????????????????# # #????? ?## ##???# | | ????????????????????#?# + #??#? ??## #??##? | | ??????????????????????# ########???????## #?#?#? | | ??????????????????????# g #???????????????# ##???? | | ??????????????????????# # ?? ???????????# #????? | | ??????????????????? ??# t#????? ??#?? ???# #????? | | ??????????????????????# C +??? ?????????#?# #????? | | ???????????????#??????# #? ?????? ????#?# ###### | | ??????????????????????# #??????+????##??# | | ?????????????????????? #????????????#?## | | ?????????????????????? T??????????????# | | ?????????????????????? #??????????????# | | ??????????????????? ? #????? ????????# * | | ????????????????????? ????? ?????????## # %= | | ????????????????????? ???? ???????????# # % | | ?????????????????????T" ????????????????# # | | ??????????????????????? ????????????????# ##+### | +----------------------------------------------------+ Best States ------------- Heat Dissipation 38 Energy Generation 10 Energy Capacity 250 Matter Stores 300 Matter Capacity 300 Sight Range 16 Terrain Scan Range 16 Terrain Scan Density 10 Evasion (%) 55 Targeting Accuracy 6 Recoil Reduction 1 Item Schematics ----------------- None Robot Schematics ------------------ None Fabricated ------------ Nothing Repaired ---------- Wheel | 15% | -10/Materials Alien Tech Used ----------------- None Achievements -------------- Fist Fight Challenges ------------ None Game ------ Seed ForceResetShield Manual? 0 Play Time 00:16:03 Cumulative 11.0 hours Start 2025.07.19 @ 16:51:20 End 2025.07.19 @ 17:15:42 Sessions 1 Manual Loads 0 Difficulty Rogue Special Mode None Game No. 21 Rogue 21 Adventurer 0 Explorer 0 Win Type - Total 0 Types 0/0/0/0/0/0/0/0/0/0 Lore% 5 Gallery% 18 Achievement% 16 Wizard Run 0 Options --------- Layout 1 ASCII 0 Keyboard 0 Movement Mouse Keybinds 0 Fullscreen 2 Font 24/Smallcaps Map View 50x35 Zoom Use 0% Tactical HUD 1 Map Filters NONE Filters NONE Steam 1 RUN: 53b6213f-eacb-4fbd-9e65-d27480fd0959